bitfinex-derivatives/quotes_ETHF0:USTF0_20251028
["timestamp","ask_amount","ask_price","bid_price","bid_amount"]
[1761643666521,0.7579,4107.7,4107.6,1.21254]
[1761643666820,0.7579,4107.7,4107.6,0.4555]
[1761643667714,0.1273,4108.0,4107.4,1.21257]
[1761643667715,0.5473,4107.5,4107.4,1.21257]
[1761643668215,0.8852,4107.5,4107.4,1.21257]
[1761643668719,0.7579,4107.5,4107.4,1.21257]
[1761643669420,0.5473,4107.5,4107.4,1.21257]
[1761643669620,0.7579,4107.9,4107.8,0.89372]
[1761643669821,0.7579,4107.9,4107.8,1.21252]
[1761643670124,0.7579,4107.9,4107.8,0.89372]
[1761643670318,0.7579,4107.9,4107.8,0.43822]
[1761643670720,0.7579,4107.9,4107.8,0.66402]
[1761643672614,0.7579,4107.9,4107.8,1.21252]
[1761643672924,0.5473,4107.9,4107.8,1.21252]
[1761643673228,0.42288282,4108.6,4108.5,1.21245]
[1761643673821,0.76088282,4108.6,4108.5,1.21245]
[1761643674818,0.5473,4108.2,4108.1,4.77914136]
[1761643675221,0.5472,4108.5,4108.4,0.66396]
[1761643675923,0.7579,4108.5,4108.4,1.21246]
[1761643676124,0.8852,4108.5,4108.4,0.89366]
[1761643677923,0.8852,4108.5,4108.4,1.21246]
[1761643683115,0.8852,4108.5,4108.4,0.89366]
[1761643683313,0.8852,4108.5,4108.4,1.21246]
[1761643684223,0.8852,4108.5,4108.4,0.89366]
[1761643684523,0.8852,4108.5,4108.4,1.20956]
[1761643685323,0.8852,4108.5,4108.4,5.09501136]
[1761643685918,0.3294,4107.9,4107.7,1.74672214]
[1761643686216,0.7573,4107.8,4107.7,0.2265]
[1761643686422,0.7573,4107.4,4107.3,0.98068]
[1761643686618,0.7573,4107.4,4107.3,0.66478]
[1761643686924,0.7573,4107.4,4107.3,0.2265]
[1761643689024,0.326,4107.3,4107.2,0.43828]
[1761643689225,0.7699,4107.2,4107.1,0.0021197]
[1761643689722,0.7699,4107.2,4107.1,0.2119197]
[1761643690929,0.5395,4107.9,4107.8,0.5461]
[1761643691130,0.4439,4108.4,4108.3,0.2098]
[1761643691627,0.7699,4108.4,4108.1,0.43819]
[1761643691818,0.326,4108.3,4108.1,0.64799]
[1761643692016,0.7699,4108.2,4108.1,0.2098]
[1761643692426,0.8993,4108.0,4107.9,0.64801]
[1761643693128,0.8993,4108.0,4107.9,1.19411]
[1761643693522,0.7699,4108.0,4107.9,1.19411]
[1761643693824,0.5395,4108.4,4108.3,0.98427]
[1761643694028,0.7699,4108.4,4108.3,0.4352]
[1761643694322,0.7699,4108.3,4108.2,1.19408]
[1761643695026,0.7699,4108.3,4108.2,0.87338]
[1761643696630,0.7699,4108.3,4108.2,1.19408]
[1761643697929,0.326,4108.2,4108.1,0.43819]
[1761643698134,0.7699,4108.2,4108.1,0.43819]
[1761643698629,0.3429,4108.0,4107.9,0.4352]
[1761643698828,0.8993,4108.0,4107.9,0.87341]
[1761643699027,0.8993,4108.0,4107.9,0.64801]
[1761643701331,0.8993,4108.0,4107.9,0.43821]
[1761643701531,0.8993,4108.0,4107.9,0.64801]
[1761643701735,0.8993,4108.0,4107.9,1.19411]
[1761643702034,0.8993,4108.0,4107.9,0.87341]
[1761643702526,0.8993,4108.0,4107.9,0.64801]
[1761643703635,0.8993,4108.0,4107.9,0.43822]
[1761643704042,0.326,4107.9,4107.8,3.88545136]
[1761643704342,1.20812,4107.9,4107.8,3.88545136]
[1761643704530,0.7699,4107.3,4107.2,4.32374136]
[1761643704736,0.7699,4107.3,4107.2,4.53354136]
[1761643706134,0.5395,4107.7,4107.6,0.7559]
[1761643706439,0.5395,4107.7,4107.6,1.19415]
[1761643706737,0.7699,4107.7,4107.6,0.43825]
[1761643707334,0.4439,4107.7,4107.3,0.3207]
[1761643707532,0.7699,4107.4,4107.3,0.64808]
[1761643707938,0.7699,4107.4,4107.3,1.19418]
[1761643708843,0.5395,4107.4,4107.3,5.07963136]
[1761643709038,0.1294,4108.0,4107.3,5.07963136]
[1761643709245,0.5733,4108.0,4107.9,0.64802]
[1761643709740,0.8993,4108.0,4107.9,0.64802]
[1761643710543,0.8993,4108.0,4107.9,0.87342]
[1761643710845,0.8993,4108.0,4107.9,1.19412]
[1761643711137,0.8993,4108.0,4107.9,0.2098]
[1761643711342,0.8993,4108.0,4107.9,0.64802]
[1761643712939,0.8993,4108.0,4107.9,0.2098]
[1761643713141,0.7699,4107.6,4107.4,1.09568]
[1761643713344,0.326,4107.5,4107.4,1.19417]
[1761643713646,0.5733,4108.0,4107.9,0.64802]
[1761643713943,0.8993,4108.0,4107.9,0.64802]
[1761643715439,0.8993,4108.0,4107.6,4.20615136]
[1761643715440,0.783,4107.8,4107.7,0.43824]
[1761643716644,0.783,4107.8,4107.7,0.66964]
[1761643718144,0.783,4107.8,4107.7,1.24154]
[1761643718846,0.5617,4107.8,4107.7,1.24154]
[1761643719640,0.5617,4107.8,4107.6,3.88545136]
[1761643719641,0.3304,4107.7,4107.6,3.88545136]
[1761643719942,0.783,4107.7,4107.6,4.55510136]
[1761643720539,0.783,4107.7,4107.6,0.2314]
[1761643720736,0.783,4107.7,4107.6,0.66965]
[1761643721050,0.783,4107.7,4107.6,0.89965]
[1761643721248,0.783,4107.7,4107.6,0.66965]
[1761643721646,0.783,4107.7,4107.6,1.24155]
[1761643721950,0.582,4108.0,4107.9,1.24152]
[1761643722142,0.5799,4108.5,4108.4,1.24147]
[1761643722451,0.9103,4108.5,4108.4,1.24147]
[1761643723446,0.9103,4108.5,4108.4,0.89957]
[1761643723744,0.9103,4108.5,4108.4,0.66957]
[1761643724044,0.9103,4108.5,4108.4,0.89957]
[1761643724251,0.9103,4108.5,4108.4,1.24147]
[1761643724551,0.5617,4108.5,4108.4,1.24147]
[1761643727059,0.783,4108.5,4108.4,1.24147]
[1761643728450,0.92,4108.5,4108.4,1.24147]
[1761643729353,0.783,4108.5,4108.4,1.24147]
[1761643730950,0.92,4108.5,4108.4,1.24147]
[1761643731654,0.783,4108.5,4108.4,1.24147]
[1761643732454,0.92,4108.5,4108.4,1.24147]
[1761643733752,0.5617,4108.5,4108.4,1.24147]
[1761643733954,0.33338282,4108.6,4108.5,1.24146]
[1761643734150,0.56468282,4108.6,4108.5,1.24146]
[1761643734857,0.78598282,4108.6,4108.5,1.24146]
[1761643735450,0.56468282,4108.6,4108.5,1.24146]
[1761643735650,0.00298282,4108.6,4108.5,1.37206]
[1761643735952,0.137,4108.5,4107.5,0.3419]
[1761643736152,0.783,4107.9,4107.8,0.43823]
[1761643736348,0.783,4107.9,4107.8,0.66963]
[1761643739053,0.783,4107.9,4107.8,1.24153]
[1761643739262,0.783,4108.4,4108.3,0.66958]
[1761643739755,0.783,4108.4,4108.3,0.43818]
[1761643740355,0.783,4108.2,4108.1,0.6696]
[1761643741562,0.783,4108.2,4108.1,0.4382]
[1761643741760,0.5896,4108.5,4108.4,0.2314]
[1761643742160,0.92,4108.5,4108.4,0.43817]
[1761643742352,0.92,4108.5,4108.4,0.66957]
[1761643743262,0.783,4108.4,4108.3,0.43818]
[1761643743458,0.5617,4107.8,4107.7,0.8033]
[1761643743667,0.783,4107.8,4107.7,1.24155]
[1761643745462,0.5323,4108.3,4108.2,1.228]
[1761643745665,0.7487,4108.3,4108.2,1.228]
[1761643745856,0.7487,4108.3,4108.2,0.8923]
[1761643749060,0.3148,4108.3,4108.2,1.2119]
[1761643749367,0.5476,4108.5,4108.4,1.20637]
[1761643749869,0.8892,4108.5,4108.4,1.20637]
[1761643750564,0.00298282,4108.6,4108.5,1.20636]
[1761643750766,0.55058282,4108.6,4108.5,1.20636]
[1761643751160,0.00298282,4108.6,4108.5,1.33156]
[1761643757467,0.33118282,4108.6,4108.5,1.33156]
[1761643757970,0.55058282,4108.6,4108.5,1.20636]
[1761643760869,0.76558282,4108.6,4108.5,1.20636]
[1761643761676,0.76558282,4108.6,4108.2,1.74672214]
[1761643761677,0.4548,4108.5,4108.2,1.96542214]
[1761643761975,0.7626,4107.8,4107.7,0.65694]
[1761643762274,0.7626,4107.8,4107.7,1.20644]
[1761643762872,0.7626,4107.8,4107.7,0.88684]
[1761643763467,0.4344,4107.2,4107.1,0.0021197]
[1761643763672,0.4344,4107.2,4105.8,0.3196]
[1761643763673,0.7626,4105.6,4105.5,1.74672214]
[1761643763875,0.7626,4105.6,4105.5,1.20668]
[1761643764678,0.76569732,4105.6,4105.5,0.00181137]
[1761643765772,0.00309732,4105.6,4105.5,0.89521137]
[1761643766172,0.00309732,4105.6,4105.5,0.77001137]
[1761643766377,0.00309732,4105.6,4105.5,1.33368137]
[1761643767673,0.76569732,4105.6,4105.5,1.20848137]
[1761643768476,0.76569732,4105.6,4105.5,0.88888137]
[1761643769676,0.55069732,4105.6,4105.5,1.20848137]
[1761643769879,0.00309732,4105.6,4105.5,1.33368137]
[1761643771767,0.3282,4106.9,4106.4,0.3196]
[1761643771972,0.7626,4106.9,4106.8,0.4486]
[1761643772477,0.7626,4106.9,4106.8,0.2187]
[1761643772781,0.43709698,4106.9,4106.7,0.43834]
[1761643773080,0.7626,4106.8,4106.7,1.20654]
[1761643773382,0.3282,4106.8,4106.7,1.20654]
[1761643773679,0.5476,4106.8,4106.7,1.20654]
[1761643774379,0.7626,4106.8,4106.7,1.20654]
[1761643774779,0.5476,4106.8,4106.7,1.20654]
[1761643775081,0.00269698,4106.9,4106.8,0.7652]
[1761643775684,0.56899698,4106.9,4106.8,0.7652]
[1761643776174,0.79599698,4106.9,4106.8,0.2214]
[1761643776375,0.79599698,4106.9,4106.8,0.4316]
[1761643776774,0.79599698,4106.9,4106.8,0.2214]
[1761643777077,0.7933,4106.8,4106.7,0.43834]
[1761643777580,0.7933,4106.6,4106.5,0.43837]
[1761643777782,0.5663,4106.2,4106.1,1.20361]
[1761643778483,0.7933,4106.2,4106.1,0.87001]
[1761643778682,0.7933,4106.2,4106.1,1.20361]
[1761643781078,0.00269698,4106.9,4106.8,0.4316]
[1761643781280,0.00269698,4106.9,4106.8,1.20353]
[1761643782372,0.79599698,4106.9,4106.8,1.20353]
[1761643783182,0.79599698,4106.9,4106.8,0.86993]
[1761643786487,0.79599698,4106.9,4106.8,1.20353]
[1761643790093,0.79599698,4106.9,4106.8,0.86993]
[1761643791287,0.79599698,4106.9,4106.8,1.20353]
[1761643792995,0.56899698,4106.9,4106.8,1.20353]
[1761643794103,0.00269698,4106.9,4106.8,1.20353]
[1761643794300,0.79599698,4106.9,4106.8,0.86993]
[1761643795003,0.79599698,4106.9,4106.8,1.20353]
[1761643796099,0.79599698,4106.9,4106.8,0.2102]
[1761643796298,0.79599698,4106.9,4106.3,1.20359]
[1761643796299,0.5663,4106.4,4106.3,1.20359]
[1761643796700,0.7933,4106.8,4106.7,0.65974]
[1761643797100,0.7933,4106.8,4106.7,0.43834]
[1761643797301,0.7933,4106.8,4106.7,0.65974]
[1761643798204,0.7933,4106.8,4106.7,0.2214]
[1761643799004,0.7933,4106.8,4106.7,0.65975]
[1761643800103,0.7933,4106.8,4106.7,0.86995]
[1761643800304,0.7933,4106.8,4106.7,1.20355]
[1761643801307,0.00269698,4106.9,4106.8,1.20354]
[1761643801807,0.00269698,4106.9,4106.8,2.95026214]
[1761643802101,0.3462,4107.7,4107.6,1.20344]
[1761643802408,0.5663,4107.7,4107.6,1.20344]
[1761643803210,0.79564504,4107.7,4107.6,1.20344]
[1761643803407,0.79564504,4107.7,4107.6,0.7652]
[1761643804010,0.79564504,4107.7,4107.6,0.4316]
[1761643804610,0.56864504,4107.7,4107.6,1.20015]
[1761643805808,0.00234504,4107.7,4107.6,1.20015]
[1761643806307,0.54404504,4107.7,4107.6,1.20015]
[1761643806813,0.00234504,4107.7,4107.6,1.20015]
[1761643807003,0.3222,4108.6,4108.5,1.23436]
[1761643807204,0.5484,4108.9,4108.8,1.23433]
[1761643808005,0.76327722,4108.9,4108.8,1.23747608]
[1761643808207,0.55017722,4108.9,4108.8,1.23747608]
[1761643809313,0.00177722,4108.9,4108.8,1.23747608]
[1761643809909,0.32397722,4108.9,4108.8,1.23747608]
[1761643810511,0.55017722,4108.9,4108.8,0.79934608]
[1761643810715,0.8932,4108.0,4107.9,0.2225]
[1761643810906,0.7615,4107.9,4107.8,0.43823]
[1761643811108,0.7615,4107.9,4107.8,0.66073]
[1761643811510,0.7615,4107.9,4107.8,0.88733]
[1761643811711,0.7615,4107.9,4107.8,0.88981493]
[1761643812211,0.7615,4107.9,4107.8,1.23691493]
[1761643813019,0.7615,4107.9,4107.8,0.88981493]
[1761643813216,0.7615,4107.9,4107.8,1.23691493]
[1761643813518,0.2262,4107.9,4107.8,1.23691493]
[1761643813718,0.5484,4107.9,4107.8,1.23691493]
[1761643814614,0.7615,4107.9,4107.8,0.00248493]
[1761643815118,0.7615,4107.9,4106.4,1.75047466]
[1761643815119,0.7615,4106.9,4106.8,0.2225]
[1761643815307,0.2262,4106.5,4106.4,0.5696]
[1761643815510,0.5484,4106.5,4106.4,0.7962]
[1761643815705,0.8932,4106.5,4106.4,0.4491]
[1761643815914,0.8932,4106.5,4106.4,0.45150404]
[1761643816220,0.8932,4106.5,4106.4,0.00240404]
[1761643822221,0.8932,4106.5,4106.4,0.45150404]
[1761643826521,0.7615,4106.5,4106.4,0.79860404]
[1761643827023,0.5484,4106.8,4106.7,1.23455]
[1761643827327,0.7615,4106.8,4106.7,1.23455]
[1761643828521,0.7615,4106.8,4106.7,0.88745]
[1761643828825,0.7615,4106.8,4106.7,1.23455]
[1761643829821,0.8932,4106.5,4106.4,0.00240404]
[1761643830630,1.33157,4106.5,4106.4,0.00240404]
[1761643834433,0.1317,4107.0,4106.4,0.76560404]
[1761643834726,1.22393,4106.9,4106.8,0.4188]
[1761643834920,0.4433,4106.9,4106.7,0.43835]
[1761643835123,0.7856,4106.8,4106.7,0.43835]
[1761643835324,0.3423,4106.7,4106.6,0.43836]
[1761643835633,0.7856,4106.7,4106.6,0.64716]
[1761643837029,1.22395,4106.7,4106.6,0.2088]
[1761643837637,0.7856,4106.7,4106.6,0.2088]
[1761643838237,0.7856,4106.7,4106.6,0.85716]
[1761643839135,0.2184,4106.5,4106.4,0.00240404]
[1761643839435,0.9234,4106.5,4106.4,0.00240404]
[1761643839826,0.9234,4106.5,4106.4,0.44078404]
[1761643840636,0.9234,4106.5,4106.4,0.64958404]
[1761643841225,0.9234,4106.5,4106.4,0.00240404]
[1761643842438,0.9234,4106.5,4106.4,0.64958404]
[1761643843232,1.36177,4106.5,4106.4,0.00240404]
[1761643844032,0.9234,4106.5,4106.4,0.44078404]
[1761643844231,0.9234,4106.5,4106.4,0.64958404]
[1761643844634,0.9234,4106.5,4106.4,0.42120404]
[1761643844835,0.3423,4106.5,4106.4,1.20397404]
[1761643845038,1.30353619,4107.8,4106.4,1.20397404]
[1761643845039,0.86403587,4108.1,4107.8,0.43822]
[1761643845238,0.1378,4109.0,4108.3,0.7632]
[1761643845433,0.2184,4108.8,4108.7,0.7632]
[1761643845740,0.4433,4108.8,4108.7,0.7632]
[1761643847039,0.3423,4109.1,4108.7,0.7632]
[1761643847340,0.78737722,4108.9,4108.8,0.7632]
[1761643850742,0.78737722,4108.9,4108.8,0.4188]
[1761643850943,0.78737722,4108.9,4108.8,0.2088]
[1761643853742,0.44507722,4108.9,4108.5,0.3444]
[1761643853945,0.7856,4108.6,4108.5,0.2088]
[1761643854838,0.7856,4108.3,4108.2,0.2088]
[1761643855240,0.7856,4108.3,4108.2,0.7632]
[1761643858048,0.5607,4108.3,4108.2,0.7632]
[1761643858247,0.5607,4108.3,4108.0,0.56549]
[1761643858248,0.5607,4108.5,4108.4,0.7632]
[1761643858445,0.7856,4108.5,4108.4,0.7632]
[1761643859751,1.22374,4108.5,4108.4,0.7632]
[1761643860250,1.36154,4108.5,4108.4,0.7632]
[1761643860758,1.36154,4108.5,4108.4,0.4188]
[1761643860947,1.36154,4108.5,4108.4,0.2088]
[1761643861857,0.9234,4108.5,4108.4,0.5532]
[1761643862055,0.9234,4108.5,4108.4,0.7632]
[1761643863058,0.7856,4107.6,4107.5,0.7632]
[1761643863244,0.3423,4107.9,4107.8,0.4188]
[1761643863452,0.4433,4108.3,4108.2,0.7632]
[1761643863854,0.2184,4108.3,4108.2,1.20139]
[1761643864358,0.2184,4108.3,4108.2,0.7632]
[1761643864657,0.2184,4108.3,4108.2,1.20139]
[1761643865358,0.2285,4108.6,4108.5,0.9045]
[1761643865751,0.5708,4108.6,4108.5,0.9045]
[1761643866455,0.5708,4108.6,4108.5,0.7707]
[1761643866654,0.7927,4108.6,4108.5,0.7707]
[1761643872045,1.23085,4108.6,4108.5,0.2162]
[1761643872249,1.23085,4108.6,4108.2,0.3189]
[1761643872250,0.7701,4108.4,4108.3,0.5307]
[1761643872452,0.7701,4108.4,4108.3,0.7475]
[1761643873044,0.7701,4108.4,4108.3,1.18568]
[1761643873563,0.7701,4108.8,4108.7,0.7475]
[1761643873749,1.20823,4108.8,4108.7,0.2118]
[1761643873950,0.7701,4108.3,4108.2,0.7475]
[1761643874360,0.7701,4108.3,4108.1,4.33619]
[1761643874361,0.3162,4108.2,4108.1,4.2169]
[1761643874564,1.20829,4108.2,4108.1,3.898]
[1761643876162,0.7701,4107.9,4107.8,0.7475]
[1761643876459,0.7701,4107.9,4107.8,0.2118]
[1761643876659,0.4539,4107.5,4107.4,2.49797466]
[1761643876862,0.7701,4107.5,4107.4,0.7475]
[1761643877264,0.7701,4107.5,4107.4,1.18578]
[1761643877559,0.5439,4108.2,4108.1,0.7475]
[1761643877860,1.20829,4108.2,4108.1,0.2118]
[1761643878055,0.7701,4108.2,4108.1,0.2118]
[1761643878655,0.7701,4108.2,4108.1,0.5307]
[1761643879856,1.20829,4108.2,4108.1,0.2118]
[1761643880764,0.7701,4108.2,4108.1,0.2118]
[1761643881065,1.20829,4108.2,4108.1,0.2118]
[1761643881454,0.7701,4107.9,4107.8,0.3189]
[1761643881656,0.7701,4107.9,4107.8,0.5307]
[1761643883565,0.7701,4107.9,4107.8,0.2118]
[1761643883968,0.1264,4108.0,4107.6,4.1098]
[1761643883969,1.20834,4107.7,4107.6,4.1098]
[1761643884662,1.20834,4107.7,4107.6,3.898]
[1761643884868,0.1264,4108.0,4107.3,0.7475]
[1761643884869,0.7701,4107.4,4107.3,0.7475]
[1761643885163,0.7701,4107.4,4107.3,4.6455]
[1761643885556,0.7701,4107.4,4107.3,5.08379]
[1761643886266,0.7701,4107.4,4107.3,4.6455]
[1761643886768,0.7701,4107.4,4107.3,5.08379]
[1761643887268,0.7701,4107.4,4107.3,4.6455]
[1761643887269,1.20838,4107.4,4107.3,4.6455]
[1761643887671,1.20838,4107.4,4107.3,4.3266]
[1761643890375,1.20841,4107.1,4107.0,0.2118]
[1761643890870,0.7701,4107.1,4107.0,0.2118]
[1761643891068,1.20841,4107.1,4107.0,0.5307]
[1761643891580,1.20841,4107.1,4107.0,0.2118]
[1761643892367,0.4426,4107.0,4106.8,0.5307]
[1761643892561,0.7701,4106.9,4106.8,0.2118]
[1761643892768,0.7701,4106.9,4106.8,0.65014]
[1761643893368,0.7701,4106.9,4106.8,1.18584]
[1761643896370,0.7701,4106.9,4106.8,0.7475]
[1761643896971,0.7701,4106.9,4106.8,1.18584]
[1761643898370,0.1264,4107.5,4107.2,0.43829]
[1761643898568,11.08616,4109.5,4107.7,1.20214]
[1761643898569,0.2216,4107.8,4107.7,1.20214]
[1761643898775,0.879,4108.1,4108.0,0.7639]
[1761643898968,0.43822,4108.0,4107.6,0.75545]
[1761643899279,0.7793,4107.8,4107.7,0.7639]
[1761643899471,0.7793,4107.8,4107.7,1.20214]
[1761643899663,0.7793,4107.4,4107.3,0.4467]
[1761643899868,0.7793,4107.4,4107.3,0.88499]
[1761643900276,0.7793,4107.4,4107.3,1.20219]
[1761643902369,0.5601,4107.4,4107.3,1.20219]
[1761643902569,0.7793,4107.8,4107.7,0.7639]
[1761643902775,0.7793,4107.8,4107.7,1.20214]
[1761643903373,0.5601,4107.8,4107.7,1.20214]
[1761643903777,0.5601,4108.1,4108.0,0.8985]
[1761643903966,0.5601,4108.1,4108.0,0.7639]
[1761643904570,0.7793,4108.1,4108.0,0.7639]
[1761643905468,0.7793,4108.1,4108.0,1.20211]
[1761643905673,0.5601,4108.1,4108.0,1.20211]
[1761643906074,0.99824,4108.7,4108.6,0.7639]
[1761643906275,0.7793,4108.7,4108.6,0.7639]
[1761643906675,0.7793,4108.7,4108.6,0.4467]
[1761643906676,1.21744,4108.7,4108.6,0.4467]
[1761643907278,0.2216,4108.7,4108.6,1.20205]
[1761643907677,0.5601,4108.7,4108.6,1.20205]
[1761643907883,1.21744,4108.7,4108.6,0.7639]
[1761643909793,1.21744,4108.7,4108.6,1.20205]
[1761643909794,0.7793,4108.7,4108.6,1.20205]
[1761643910193,0.00177722,4108.9,4108.8,0.7639]
[1761643910490,0.00177722,4108.9,4108.8,1.20203]
[1761643910794,0.00177722,4108.9,4108.8,0.7639]
[1761643910995,0.00177722,4108.9,4108.8,1.20203]
[1761643912091,0.00177722,4108.9,4108.8,0.7639]
[1761643912797,0.00177722,4108.9,4108.8,1.20203]
[1761643913685,0.2216,4110.4,4110.3,0.4467]
[1761643913886,0.7793,4110.5,4110.4,0.5332]
[1761643914087,0.9139,4110.5,4110.4,0.216]
[1761643914584,0.9139,4110.5,4110.4,0.7639]
[1761643914790,0.9159869,4110.5,4110.4,0.76664971]
[1761643915893,0.5621869,4110.5,4110.4,0.76664971]
[1761643916098,0.7813869,4110.5,4110.4,0.76664971]
[1761643917907,0.9159869,4110.5,4110.4,0.00274971]
[1761643920407,0.9159869,4110.5,4110.4,0.21874971]
[1761643920598,0.9159869,4110.5,4110.4,0.00274971]
[1761643921402,0.7793,4109.6,4109.5,0.7639]
[1761643921608,0.7793,4109.3,4109.2,1.20198]
[1761643922306,0.7793,4109.6,4109.5,0.7639]
[1761643922608,0.7793,4109.6,4109.5,1.20195]
[1761643923201,0.7793,4109.6,4109.5,0.65405]
[1761643923806,0.7793,4109.6,4109.5,1.20195]
[1761643924904,0.5601,4109.6,4109.5,1.20195]
[1761643925110,0.4461,4109.9,4109.8,0.766]
[1761643925609,0.7607,4109.9,4109.8,0.766]
[1761643926204,0.3146,4109.9,4109.8,1.20402]
[1761643926407,0.7607,4109.9,4109.8,0.766]
[1761643926910,0.7607,4109.9,4109.8,1.21272]
[1761643927303,0.2263,4109.9,4109.8,1.21272]
[1761643927502,0.5473,4109.9,4109.8,1.21272]
[1761643929704,0.4252,4110.2,4110.1,0.2239]
[1761643929904,0.7462,4110.2,4110.1,0.4541]
[1761643930306,0.7462,4110.2,4110.1,1.23419]
[1761643933311,1.18418,4110.2,4110.1,0.7962]
[1761643933710,1.18418,4110.2,4110.1,0.4541]
[1761643935517,0.7462,4110.2,4110.1,1.23419]
[1761643939809,0.5319869,4110.5,4110.4,0.43794]
[1761643940016,0.0020869,4110.5,4110.4,1.23414]
[1761643941713,0.4264869,4110.5,4110.4,0.7962]
[1761643941911,0.7894,4110.1,4110.0,0.4344]
[1761643942415,0.7894,4110.1,4110.0,0.749]
[1761643943912,0.3477,4110.4,4110.3,0.749]
[1761643944213,0.5739,4110.4,4110.3,0.749]
[1761643944415,0.4400169,4110.5,4110.3,0.749]
[1761643944615,0.2282869,4110.5,4110.3,0.4344]
[1761643944822,0.0020869,4110.5,4110.4,1.18695]
[1761643945715,0.0020869,4110.5,4110.4,0.749]
[1761643945920,0.5759869,4110.5,4110.4,0.749]
[1761643946218,1.0139169,4110.5,4110.4,0.749]
[1761643946612,1.2294169,4110.5,4110.4,0.749]
[1761643948722,0.7914869,4110.5,4110.4,0.749]
[1761643948920,1.2294269,4110.5,4110.4,0.749]
[1761643949522,1.3667269,4110.5,4110.4,0.749]
[1761643951126,1.3667269,4110.5,4110.4,1.18695]
[1761643952226,1.3667269,4110.5,4110.4,0.749]
[1761643955316,0.4255,4110.2,4110.1,4.4612]
[1761643955528,0.7564,4110.2,4110.1,4.4612]
[1761643955824,1.19437,4110.2,4110.1,4.4612]
[1761643957728,1.19437,4110.2,4110.1,3.898]
[1761643958027,1.19441,4109.8,4109.7,0.5632]
[1761643959231,1.33064,4109.5,4109.4,0.5632]
[1761643961129,1.33064,4109.5,4109.4,0.2226]
[1761643961525,1.33064,4109.5,4109.2,0.002246]
[1761643961728,1.19447,4109.3,4109.2,0.224846]
[1761643961924,1.19447,4109.3,4109.2,0.002246]
[1761643966038,0.7564,4109.3,4109.2,0.776146]
[1761643966230,0.7564,4109.3,4109.2,1.214226]
[1761643966430,1.19446,4109.3,4109.2,1.214226]
[1761643966630,1.19446,4109.3,4109.2,0.776146]
[1761643967033,1.19446,4109.3,4109.2,0.224846]
[1761643967434,1.19446,4109.3,4109.2,0.002246]
[1761643968227,1.19446,4109.3,4109.2,0.224846]
[1761643968638,1.19446,4109.3,4109.2,0.662916]
[1761643969227,0.5423,4109.3,4109.2,1.214216]
[1761643969536,1.19444,4109.6,4109.5,0.4333]
[1761643969931,1.19444,4109.6,4109.5,0.7739]
[1761643970237,1.19444,4109.6,4109.5,1.21194]
[1761643971140,1.19443,4109.6,4109.5,0.7739]
[1761643972540,0.3309,4110.2,4109.9,0.3406]
[1761643972732,0.64937,4110.2,4110.1,1.21188]
[1761643972935,1.19437,4110.2,4110.1,0.7739]
[1761643974032,0.7564,4110.2,4110.1,1.21188]
[1761643974230,0.8655269,4110.5,4110.4,0.2226]
[1761643974435,1.0017269,4110.5,4110.4,0.7739]
[1761643974635,0.86347,4110.2,4110.1,0.7739]
[1761643974835,0.7564,4110.2,4110.1,0.7739]
[1761643975035,1.19437,4110.2,4110.1,0.7739]
[1761643975443,1.19437,4110.2,4110.1,0.2226]
[1761643976541,1.19437,4110.2,4110.1,0.7739]
[1761643978842,0.1382869,4110.5,4110.1,1.21188]
[1761643979039,0.5443869,4110.5,4110.4,0.7739]
[1761643979338,0.0020869,4110.5,4110.4,1.21185]
[1761643980846,0.0020869,4110.5,4110.4,0.7739]
[1761643980847,0.7584869,4110.5,4110.4,0.7739]
[1761643981240,1.3326269,4110.5,4110.4,0.4333]
[1761643981645,1.3326269,4110.5,4110.4,0.7739]
[1761643983945,0.43801,4110.0,4109.7,0.3406]
[1761643984148,0.7564,4109.8,4109.7,1.21193]
[1761643985246,0.5762369,4110.5,4110.1,0.43799]
[1761643985458,0.2118,4110.2,4110.1,0.87079]
[1761643985751,0.5556,4110.2,4110.1,0.4328]
[1761643986049,1.20617,4110.2,4110.1,0.7615]
[1761643988255,0.6769869,4110.5,4110.2,0.43796]
[1761643988553,0.7635869,4110.5,4110.4,0.7475]
[1761643988757,1.2015269,4110.5,4110.4,0.7475]
[1761643989961,1.3395269,4110.5,4110.4,0.7475]
[1761643990554,0.9015869,4110.5,4110.4,1.18545]
[1761643991152,0.7635869,4110.5,4110.4,1.18545]
[1761643992556,0.7635869,4110.5,4110.4,0.7475]
[1761643992755,1.2015269,4110.5,4110.4,0.7475]
[1761643994253,1.2015269,4110.5,4110.4,1.18545]
[1761643995159,1.2015269,4110.5,4110.4,0.7475]
[1761643995762,1.2015269,4110.5,4110.4,1.18545]
[1761643996358,0.3173869,4110.5,4110.4,1.18545]
[1761643996563,0.0020869,4110.5,4110.4,1.18545]
[1761643998063,1.2015269,4110.5,4110.4,0.7475]
[1761643998265,1.2015269,4110.5,4110.4,1.18545]
[1761643999259,0.7635869,4110.5,4110.4,1.18545]
[1761644002561,0.0020869,4110.5,4110.4,1.18545]
[1761644011764,0.7615,4111.9,4111.8,0.2123]
[1761644011969,1.76917949,4111.9,4111.8,0.5373]
[1761644012473,1.76917949,4111.9,4111.8,0.2123]
[1761644012675,1.77225285,4111.9,4111.8,0.2123]
[1761644013274,1.20236336,4111.9,4111.8,0.2123]
[1761644013781,1.19932,4111.6,4111.5,0.5373]
[1761644014581,1.19932,4111.6,4111.5,0.7475]
[1761644017780,0.66289,4111.0,4110.9,0.2175]
[1761644017980,0.4488,4110.8,4110.7,0.65541]
[1761644018480,0.7857,4110.8,4110.7,0.97771]
[1761644018878,0.7857,4110.8,4110.7,0.5398]